fUSD/lending_fUSD_20250113
["ID","MTS","AMOUNT","RATE_DAILY","PERIOD"]
[348720153,1736748654808,-673.28,0.00011916,2]
[348720154,1736748654817,-1437.23,0.00011916,2]
[348720155,1736748654826,-1973.53,0.00011916,2]
[348720156,1736748654835,-613.73,0.00011916,2]
[348720157,1736748654844,-968.03,0.00011916,2]
[348720158,1736748654853,-1992.94,0.00011916,2]
[348720159,1736748654863,-500.0,0.00011916,2]
[348720160,1736748654873,-2274.16,0.00011916,2]
[348720161,1736748654883,-717.623348,0.00011916,2]
[348720162,1736748654892,-709.26,0.00011916,2]
[348720163,1736748654901,-1904.22,0.00011916,2]
[348720164,1736748654912,-781.01624,0.00011916,2]
[348720165,1736748654921,-556.88,0.00011916,2]
[348720166,1736748654931,-500.0,0.00011916,2]
[348720167,1736748654940,-1234.36,0.00011916,2]
[348720168,1736748654951,-500.0,0.00011916,2]
[348720169,1736748654961,-500.0,0.00011916,2]
[348720170,1736748654972,-500.0,0.00011916,2]
[348720171,1736748654981,-1497.61,0.00011916,2]
[348720172,1736748654990,-761.58,0.00011916,2]
[348720173,1736748654999,-1943.01,0.00011916,2]
[348720174,1736748655008,-599.84,0.00011916,2]
[348720175,1736748655017,-500.26,0.00011917,2]
[348720176,1736748655027,-500.0,0.00011917,2]
[348720177,1736748655037,-579.06,0.00011917,2]
[348720178,1736748655046,-500.0,0.00011917,2]
[348720179,1736748655056,-538.74,0.00011917,2]
[348720180,1736748655066,-500.0,0.00011917,2]
[348720181,1736748655075,-593.16,0.00011917,2]
[348720182,1736748655083,-500.0,0.00011917,2]
[348720183,1736748655092,-561.03,0.00011917,2]
[348720184,1736748655102,-545.75,0.00011917,2]
[348720185,1736748655111,-598.34,0.00011917,2]
[348720186,1736748655120,-557.95,0.00011917,2]
[348720187,1736748655129,-567.25,0.00011917,2]
[348720188,1736748655138,-500.0,0.00011917,2]
[348720189,1736748655147,-2860.34,0.00011917,2]
[348720190,1736748655156,-690.58,0.00011917,2]
[348720191,1736748655166,-500.0,0.00011917,2]
[348720192,1736748655176,-656.31,0.00011917,2]
[348720193,1736748655185,-672.9,0.00011917,2]
[348720194,1736748655194,-500.0,0.00011917,2]
[348720195,1736748655203,-500.0,0.00011917,2]
[348720196,1736748655212,-500.0,0.00011917,2]
[348720197,1736748655221,-828.54,0.00011917,2]
[348720198,1736748655231,-1242.39,0.00011917,2]
[348720199,1736748655240,-500.0,0.00011917,2]
[348720200,1736748655249,-1005.42,0.00011917,2]
[348720201,1736748655258,-1234.58,0.00011917,2]
[348720202,1736748655267,-1033.53,0.00011917,2]
[348720203,1736748655278,-844.52,0.00011917,2]
[348720204,1736748655287,-500.0,0.00011917,2]
[348720205,1736748655296,-1923.89,0.00011917,2]
[348720206,1736748655305,-827.39,0.00011917,2]
[348720207,1736748655314,-214.6408366,0.00011947,2]
[348720208,1736748655323,-282682.0,0.00012,2]
[348720209,1736748655335,-2004.43,0.00012,4]
[348720210,1736748655344,-616.42,0.00012018,2]
[348720211,1736748655353,-847.96,0.00012018,2]
[348720212,1736748655362,-3583.81,0.00012018,2]
[348720213,1736748655372,-169.26361406,0.00012018,2]
[348720214,1736748655381,-500.0,0.00012018,2]
[348720215,1736748655391,-690.81,0.00012018,2]
[348720216,1736748655399,-1173.49,0.00012018,2]
[348720217,1736748655411,-1307.94,0.00012018,2]
[348720218,1736748655421,-2121.67,0.00012018,2]
[348720219,1736748655430,-500.0,0.00012018,2]
[348720220,1736748655441,-588.81,0.00012018,2]
[348720221,1736748655451,-511.26,0.00012018,2]
[348720222,1736748655461,-929.02,0.00012018,2]
[348720223,1736748655470,-1095.98,0.00012018,2]
[348720224,1736748655479,-831.36,0.00012018,2]
[348720225,1736748655488,-1591.75,0.00012018,2]
[348720226,1736748655497,-749.68,0.00012018,2]
[348720227,1736748655506,-749.66,0.00012025,2]
[348720228,1736748655515,-617.27,0.00012025,2]
[348720229,1736748655524,-500.0,0.00012025,2]
[348720230,1736748655533,-862.85,0.00012025,2]
[348720231,1736748655542,-500.0,0.00012025,2]
[348720232,1736748655551,-663.9,0.00012026,2]
[348720233,1736748655560,-200.0,0.00012055,2]
[348720234,1736748655570,-4149.1537,0.0001217,2]
[348720235,1736748655579,-58060.8952,0.0001217,2]
[348720236,1736748655590,-1650.9838,0.0001217,2]
[348720237,1736748655600,-3897.0,0.00012183,2]
[348720238,1736748655609,-1174.0,0.00012183,2]
[348720239,1736748655619,-150.0,0.00012183,2]
[348720240,1736748655628,-2016.0,0.00012186,2]
[348720241,1736748655638,-635.0,0.00012186,2]
[348720242,1736748655648,-566.0,0.00012186,2]
[348720243,1736748655658,-455.595,0.00012186,2]
[348720244,1736748655668,-2944.0,0.00012186,2]
[348720245,1736748655678,-1534.95,0.00012188,2]
[348720246,1736748655688,-793.85,0.00012188,2]
[348720247,1736748655697,-613.27,0.00012188,2]
[348720248,1736748655707,-1839.74,0.00012188,2]
[348720249,1736748655716,-588.59,0.00012188,2]
[348720250,1736748655726,-1179.2,0.00012188,2]
[348720251,1736748655736,-500.0,0.00012188,2]
[348720252,1736748655745,-561.11,0.00012188,2]
[348720253,1736748655755,-500.0,0.00012188,2]
[348720254,1736748655765,-1479.56,0.00012188,2]
[348720255,1736748655775,-585.79,0.00012189,2]
[348720256,1736748655786,-500.0,0.00012189,2]
[348720257,1736748655796,-500.0,0.00012189,2]
[348720258,1736748655806,-500.0,0.00012189,2]
[348720259,1736748655815,-500.0,0.00012189,2]
[348720260,1736748655824,-500.0,0.00012189,2]
[348720261,1736748655835,-500.0,0.00012189,2]
[348720262,1736748655844,-500.0,0.00012189,2]
[348720263,1736748655854,-500.0,0.00012189,2]
[348720264,1736748655864,-500.0,0.00012189,2]
[348720265,1736748655874,-582.92604277,0.00012189,2]
[348720266,1736748655884,-500.0,0.00012189,2]
[348720267,1736748655893,-500.0,0.00012189,2]
[348720268,1736748655902,-500.0,0.00012189,2]
[348720269,1736748655911,-500.0,0.00012189,2]
[348720270,1736748655921,-500.0,0.00012189,2]
[348720271,1736748655931,-500.0,0.00012189,2]
[348720272,1736748655940,-500.0,0.00012189,2]
[348720273,1736748655949,-500.0,0.00012189,2]
[348720274,1736748655959,-500.0,0.00012189,2]
[348720275,1736748655968,-500.0,0.00012189,2]
[348720276,1736748655978,-500.0,0.00012189,2]
[348720277,1736748655988,-500.0,0.00012189,2]
[348720278,1736748655998,-510.22,0.00012189,2]
[348720279,1736748656007,-500.0,0.00012189,2]
[348720280,1736748656017,-199.61137722,0.00012189,2]
[348720281,1736748656027,-500.0,0.00012189,2]
[348720282,1736748656037,-500.0,0.00012189,2]
[348720283,1736748656047,-500.0,0.00012189,2]
[348720284,1736748656056,-534.37873484,0.00012189,2]
[348720285,1736748656065,-500.0,0.00012189,2]
[348720286,1736748656075,-500.0,0.00012189,2]
[348720287,1736748656084,-2499.79,0.00012189,2]
[348720288,1736748656094,-500.0,0.00012189,2]
[348720289,1736748656103,-500.0,0.00012189,2]
[348720290,1736748656112,-500.0,0.00012189,2]
[348720291,1736748656122,-1971.39,0.00012189,2]
[348720292,1736748656132,-500.0,0.00012189,2]
[348720293,1736748656141,-500.0,0.00012189,2]
[348720294,1736748656151,-500.0,0.00012189,2]
[348720295,1736748656161,-500.0,0.00012189,2]
[348720296,1736748656171,-500.0,0.00012189,2]
[348720297,1736748656181,-1760.49,0.00012189,2]
[348720298,1736748656191,-500.0,0.00012189,2]
[348720299,1736748656201,-500.0,0.00012189,2]
[348720300,1736748656211,-500.0,0.00012189,2]
[348720301,1736748656220,-1774.52,0.00012189,2]
[348720302,1736748656230,-500.0,0.00012189,2]
[348720303,1736748656240,-500.0,0.00012189,2]
[348720304,1736748656250,-500.0,0.00012189,2]
[348720305,1736748656259,-512.56,0.00012189,2]
[348720306,1736748656270,-500.0,0.00012189,2]
[348720307,1736748656281,-500.0,0.00012189,2]
[348720308,1736748656291,-825.62,0.0001219,2]
[348720309,1736748656301,-535.55,0.0001219,2]
[348720310,1736748656310,-656.21,0.0001219,2]
[348720311,1736748656319,-831.27,0.0001219,2]
[348720312,1736748656331,-1120.56,0.0001219,2]
[348720313,1736748656342,-848.83,0.0001219,2]
[348720314,1736748656353,-2057.32,0.0001219,2]
[348720315,1736748656363,-500.0,0.0001219,2]
[348720316,1736748656372,-847.54,0.0001219,2]
[348720317,1736748656384,-1444.9,0.0001219,2]
[348720318,1736748656393,-766.22,0.0001219,2]
[348720319,1736748656403,-683.38,0.0001219,2]
[348720320,1736748656414,-921.56,0.0001219,2]
[348720321,1736748656425,-822.29,0.0001219,2]
[348720322,1736748656434,-835.42,0.0001219,2]
[348720323,1736748656443,-773.09,0.0001219,2]
[348720324,1736748656452,-673.28,0.0001219,2]
[348720325,1736748656462,-1437.23,0.0001219,2]
[348720326,1736748656472,-1973.53,0.0001219,2]
[348720327,1736748656482,-613.73,0.0001219,2]
[348720328,1736748656492,-968.03,0.0001219,2]
[348720329,1736748656502,-1992.94,0.0001219,2]
[348720330,1736748656511,-500.0,0.0001219,2]
[348720331,1736748656521,-2274.16,0.0001219,2]
[348720332,1736748656530,-717.623348,0.0001219,2]
[348720333,1736748656539,-709.26,0.0001219,2]
[348720334,1736748656548,-1904.22,0.0001219,2]
[348720335,1736748656556,-781.01624,0.0001219,2]
[348720336,1736748656566,-556.88,0.0001219,2]
[348720337,1736748656575,-500.0,0.0001219,2]
[348720338,1736748656585,-1234.36,0.0001219,2]
[348720339,1736748656595,-500.0,0.0001219,2]
[348720340,1736748656605,-500.0,0.0001219,2]
[348720341,1736748656614,-500.0,0.0001219,2]
[348720342,1736748656623,-1497.61,0.0001219,2]
[348720343,1736748656632,-761.58,0.0001219,2]
[348720344,1736748656641,-1943.01,0.0001219,2]
[348720345,1736748656651,-599.84,0.0001219,2]
[348720346,1736748656660,-500.26,0.00012191,2]
[348720347,1736748656669,-500.0,0.00012191,2]
[348720348,1736748656680,-579.06,0.00012191,2]
[348720349,1736748656689,-500.0,0.00012191,2]
[348720350,1736748656699,-538.74,0.00012191,2]
[348720351,1736748656708,-500.0,0.00012191,2]
[348720352,1736748656718,-593.16,0.00012191,2]
[348720353,1736748656727,-500.0,0.00012191,2]
[348720354,1736748656736,-561.03,0.00012191,2]
[348720355,1736748656746,-545.75,0.00012191,2]
[348720356,1736748656755,-598.34,0.00012191,2]
[348720357,1736748656765,-557.95,0.00012191,2]
[348720358,1736748656775,-567.25,0.00012191,2]
[348720359,1736748656784,-500.0,0.00012191,2]
[348720360,1736748656793,-2860.34,0.00012191,2]
[348720361,1736748656802,-3000.0,0.00012191,2]
[348720362,1736748656811,-690.58,0.00012191,2]
[348720363,1736748656821,-500.0,0.00012191,2]
[348720364,1736748656830,-656.31,0.00012191,2]
[348720365,1736748656839,-672.9,0.00012191,2]
[348720366,1736748656849,-500.0,0.00012191,2]
[348720367,1736748656858,-500.0,0.00012191,2]
[348720368,1736748656868,-500.0,0.00012191,2]
[348720369,1736748656877,-828.54,0.00012191,2]
[348720370,1736748656886,-1242.39,0.00012191,2]
[348720371,1736748656896,-500.0,0.00012191,2]
[348720372,1736748656906,-1005.42,0.00012191,2]
[348720373,1736748656915,-1234.58,0.00012191,2]
[348720374,1736748656925,-1033.53,0.00012191,2]
[348720375,1736748656935,-844.52,0.00012191,2]
[348720376,1736748656944,-500.0,0.00012191,2]
[348720377,1736748656953,-1923.89,0.00012191,2]
[348720378,1736748656963,-2338.19220647,0.000122,2]
[348720379,1736748656973,-586.19316863,0.000122,2]
[348720380,1736748656982,-3631.77242324,0.000122,2]
[348720381,1736748656991,-2756.25385544,0.000122,2]
[348720382,1736748657001,-3316.3576328,0.00012262,2]
[348720383,1736748657011,-1367.5862205,0.00012262,2]
[348720384,1736748657020,-2548.4527029,0.00012262,2]
[348720385,1736748657030,-2011.0540879,0.00012262,2]
[348720386,1736748657039,-1451.392339,0.00012262,2]
[348720387,1736748657049,-598094.0,0.0001227,3]
[348720388,1736748657058,-400.0,0.0001227,2]
[348720389,1736748657068,-400.0,0.0001227,2]
[348720390,1736748657077,-400.0,0.0001227,2]
[348720391,1736748657087,-400.0,0.0001227,2]
[348720392,1736748657096,-400.0,0.0001227,2]
[348720393,1736748657105,-500.0,0.00012291,2]
[348720394,1736748657115,-2746.9738565,0.00012292,2]
[348720395,1736748657124,-2177.5900803,0.00012292,2]
[348720396,1736748657133,-1608.2063041,0.00012292,2]
[348720397,1736748657143,-1038.8225279,0.00012292,2]
[348720398,1736748657152,-469.4387516,0.00012292,2]
[348720399,1736748657162,-1132.7860292,0.00012292,2]
[348720400,1736748657171,-897.9858379,0.00012292,2]
[348720401,1736748657182,-663.1856466,0.00012292,2]
[348720402,1736748657191,-428.3854553,0.00012292,2]
[348720403,1736748657200,-193.585264,0.00012292,2]
[348720404,1736748657210,-616.42,0.00012292,2]
[348720405,1736748657219,-847.96,0.00012292,2]
[348720406,1736748657229,-3583.81,0.00012292,2]
[348720407,1736748657238,-500.0,0.00012292,2]
[348720408,1736748657247,-690.81,0.00012292,2]
[348720409,1736748657257,-1173.49,0.00012292,2]
[348720410,1736748657267,-2392.6611517,0.00012292,2]
[348720411,1736748657276,-2236.8696005,0.00012292,2]
[348720412,1736748657286,-2081.0780493,0.00012292,2]
[348720413,1736748657295,-1925.2864981,0.00012292,2]
[348720414,1736748657304,-1769.4949469,0.00012292,2]
[348720415,1736748657315,-1307.94,0.00012292,2]
[348720416,1736748657325,-1888.1146919,0.00012292,2]
[348720417,1736748657339,-1765.175296,0.00012292,2]
[348720418,1736748657348,-1642.2359,0.00012292,2]
[348720419,1736748657357,-1519.296504,0.00012292,2]
[348720420,1736748657366,-1396.3571081,0.00012292,2]
[348720421,1736748657378,-2121.67,0.00012292,2]
[348720422,1736748657388,-588.81,0.00012292,2]
[348720423,1736748657398,-500.0,0.00012292,2]
[348720424,1736748657409,-1362.6660842,0.00012292,2]
[348720425,1736748657418,-1273.9398294,0.00012292,2]
[348720426,1736748657430,-1185.2135746,0.00012292,2]
[348720427,1736748657439,-1096.4873198,0.00012292,2]
[348720428,1736748657450,-1007.7610649,0.00012292,2]
[348720429,1736748657459,-511.26,0.00012292,2]
[348720430,1736748657470,-929.02,0.00012292,2]
[348720431,1736748657480,-1095.98,0.00012292,2]
[348720432,1736748657490,-831.36,0.00012292,2]
[348720433,1736748657500,-1591.75,0.00012292,2]
[348720434,1736748657510,-749.68,0.00012292,2]
[348720435,1736748657520,-2000.0,0.00012299,2]
[348720436,1736748657530,-2000.0,0.00012299,2]
[348720437,1736748657540,-2000.0,0.00012299,2]
[348720438,1736748657550,-2000.0,0.00012299,2]
[348720439,1736748657560,-2000.0,0.00012299,2]
[348720440,1736748657570,-2000.0,0.00012299,2]
[348720441,1736748657579,-2000.0,0.00012299,2]
[348720442,1736748657590,-2000.0,0.00012299,2]
[348720443,1736748657599,-2000.0,0.00012299,2]
[348720444,1736748657609,-2000.0,0.00012299,2]
[348720445,1736748657618,-179.42039118,0.00012299,2]
[348720446,1736748657628,-749.66,0.00012299,2]
[348720447,1736748657638,-617.27,0.00012299,2]
[348720448,1736748657649,-500.0,0.00012299,2]
[348720449,1736748657660,-862.85,0.00012299,2]
[348720450,1736748657670,-500.0,0.00012299,2]
[348720451,1736748657681,-218695.07975451,0.000123,4]
[348720452,1736748658143,-502.54824602,0.00010271,2]
[348720453,1736748658153,-500.0,0.00010818,2]
[348720454,1736748658163,-158.93156158,0.000123,4]
[348720455,1736748658427,-322.11299999,9.898e-05,2]
[348720456,1736748658471,-653.67668701,9.898e-05,2]
[348720457,1736748658795,-695.660313,9.898e-05,2]
[348720458,1736748658805,-325.15869261,9.998e-05,2]
[348720459,1736748658823,-174.84130739,9.998e-05,2]
[348720460,1736748658833,-500.0,0.00010107,2]
[348720461,1736748658843,-511.08038313,0.00010271,2]
[348720462,1736748658853,-629.13936098,0.00010271,2]
[348720463,1736748658863,-500.0,0.00010272,2]
[348720464,1736748658873,-500.0,0.00010546,2]
[348720465,1736748658882,-500.0,0.0001082,2]
[348720466,1736748658893,-500.0,0.00011092,2]
[348720467,1736748658903,-582.15558254,0.00011366,2]
[348720468,1736748658912,-1104.0,0.00012183,2]
[348720469,1736748658922,-827.39,0.00012191,2]
[348720470,1736748658932,-591592.90448726,0.000123,4]
[348720471,1736748659300,-156.947837,9.998e-05,2]
[348720472,1736748659310,-262.536673,0.0001027,2]
[348720473,1736748659322,-237.463327,0.0001027,2]
[348720474,1736748659334,-91.22248302,0.0001027,2]
[348720475,1736748659351,-408.77751698,0.0001027,2]
[348720476,1736748659361,-504.03620277,0.00010271,2]
[348720477,1736748659371,-156.947837,0.00010272,2]
[348720478,1736748659381,-500.0,0.00010381,2]
[348720479,1736748659392,-648.71,0.00010544,2]
[348720480,1736748659401,-500.0,0.00010544,2]
[348720481,1736748659413,-500.0,0.00010818,2]
[348720482,1736748659423,-156.947837,0.0001082,2]
[348720483,1736748659434,-150.0,0.00010959,2]
[348720484,1736748659443,-275.77,0.00011092,2]
[348720485,1736748659453,-500.0,0.00011094,2]
[348720486,1736748659463,-156.947837,0.00011094,2]
[348720487,1736748659472,-156.947837,0.00011368,2]
[348720488,1736748659481,-1785.01523986,0.000123,4]
[348720489,1736748659521,-150.8,0.00010271,2]
[348720490,1736748659531,-500.0,0.00011368,2]
[348720491,1736748659540,-4208.38,0.000123,4]
[348720492,1736748659552,-7519.56694628,0.000123,4]
[348720493,1736748659577,-345.27883011,0.000123,4]
[348720494,1736749228562,796.11,8.219e-05,2]
[348720496,1736749443757,194.92,8.902e-05,2]
[348720497,1736749599070,250.0,8.35e-05,2]
[348720499,1736749741592,1000.0,8.357e-05,2]
[348720504,1736749831882,-170.68,9.112e-05,2]
[348720505,1736749831892,-170.68,9.114e-05,2]
[348720506,1736749831901,-170.68,9.116e-05,2]
[348720507,1736749831911,-170.68,9.119e-05,2]
[348720508,1736749831920,-170.68,9.121e-05,2]
[348720509,1736749831929,-170.68,9.124e-05,2]
[348720510,1736749831939,-170.68,9.126e-05,2]
[348720511,1736749831948,-170.68,9.129e-05,2]
[348720512,1736749831958,-170.68,9.131e-05,2]
[348720513,1736749831968,-300.0,9.132e-05,2]
[348720514,1736749831977,-3303.12515316,9.133e-05,2]
[348720515,1736749831988,-1466.74484684,9.133e-05,2]
[348720516,1736749831997,-150.99,9.133e-05,2]
[348720517,1736749832006,-243.58,9.133e-05,2]
[348720518,1736749832015,-1443.16,9.133e-05,2]
[348720519,1736749832025,-170.68,9.133e-05,2]
[348720520,1736749832034,-150.0,9.134e-05,2]
[348720521,1736749832044,-14119.56510371,9.135e-05,2]
[348720522,1736749832056,-480.08817761,9.135e-05,2]
[348720523,1736749832081,-1220.00016878,9.135e-05,2]
[348720524,1736749832092,-454.92529219,9.135e-05,2]
[348720551,1736749839990,-530.69259837,9.135e-05,2]
[348720552,1736749840002,-29912.72865934,9.135e-05,2]
[348720553,1736749840011,-170.68,9.136e-05,2]
[348720554,1736749840021,-170.68,9.138e-05,2]
[348720555,1736749840030,-170.68,9.141e-05,2]
[348720556,1736749840040,-170.68,9.143e-05,2]
[348720557,1736749840049,-170.68,9.145e-05,2]
[348720558,1736749840059,-170.68,9.148e-05,2]
[348720559,1736749840068,-170.68,9.15e-05,2]
[348720560,1736749840077,-250.0,9.152e-05,2]
[348720561,1736749840086,-170.68,9.153e-05,2]
[348720562,1736749840095,-170.68,9.155e-05,2]
[348720563,1736749840105,-170.68,9.157e-05,2]
[348720564,1736749840114,-559.93,9.185e-05,2]
[348720565,1736749840124,-200.0,9.2e-05,3]
[348720566,1736749840135,-250.0,9.206e-05,2]
[348720567,1736749840144,-500.0,9.3e-05,3]
[348720568,1736749840153,-800.0,9.4e-05,3]
[348720569,1736749840162,-1000.0,9.402e-05,2]
[348720570,1736749840171,-1100.0,9.5e-05,3]
[348720571,1736749840180,-1001.32293127,9.571e-05,2]
[348720572,1736749840189,-1300.0,9.6e-05,3]
[348720573,1736749840198,-200.0,9.7e-05,3]
[348720574,1736749840207,-200.0,9.8e-05,3]
[348720575,1736749840217,-2500.0,9.8e-05,2]
[348720576,1736749840226,-1895.4294,9.898e-05,2]
[348720577,1736749840235,-265.6203,9.898e-05,2]
[348720578,1736749840244,-1617.4816,9.899e-05,2]
[348720579,1736749840253,-6566.547,9.899e-05,2]
[348720580,1736749840262,-500.0,9.899e-05,2]
[348720581,1736749840270,-1091.9,9.899e-05,2]
[348720582,1736749840280,-836.52,9.899e-05,2]
[348720583,1736749840289,-500.0,9.899e-05,2]
[348720584,1736749840299,-500.0,9.899e-05,2]
[348720585,1736749840309,-1290.82,9.899e-05,2]
[348720586,1736749840318,-500.0,9.899e-05,2]
[348720587,1736749840327,-500.0,9.899e-05,2]
[348720588,1736749840336,-500.0,9.899e-05,2]
[348720590,1736749840345,-832.64,9.899e-05,2]
[348720592,1736749840354,-500.0,9.899e-05,2]
[348720593,1736749840363,-500.0,9.899e-05,2]
[348720595,1736749840372,-1093.79,9.899e-05,2]
[348720597,1736749840381,-500.0,9.899e-05,2]
[348720599,1736749840391,-500.0,9.899e-05,2]
[348720601,1736749840399,-501.08243367,9.899e-05,2]
[348720602,1736749840408,-500.0,9.899e-05,2]
[348720604,1736749840417,-500.0,9.899e-05,2]
[348720606,1736749840426,-500.00128527,9.899e-05,2]
[348720608,1736749840435,-500.0,9.899e-05,2]
[348720609,1736749840444,-500.0,9.899e-05,2]
[348720611,1736749840453,-500.0,9.899e-05,2]
[348720613,1736749840462,-503.5652404,9.899e-05,2]
[348720615,1736749840472,-500.0,9.899e-05,2]
[348720616,1736749840480,-500.0,9.899e-05,2]
[348720618,1736749840489,-753.4,9.899e-05,2]
[348720620,1736749840498,-500.0,9.899e-05,2]
[348720622,1736749840507,-500.0,9.899e-05,2]
[348720623,1736749840515,-500.0,9.899e-05,2]
[348720625,1736749840524,-500.0,9.899e-05,2]
[348720627,1736749840533,-500.0,9.899e-05,2]
[348720629,1736749840542,-500.0,9.899e-05,2]
[348720631,1736749840551,-577.34402924,9.899e-05,2]
[348720632,1736749840559,-500.0,9.899e-05,2]
[348720634,1736749840568,-500.0,9.899e-05,2]
[348720636,1736749840577,-500.0,9.899e-05,2]
[348720638,1736749840586,-500.0,9.899e-05,2]
[348720639,1736749840595,-500.0,9.899e-05,2]
[348720641,1736749840603,-2666.74,9.899e-05,2]
[348720643,1736749840613,-500.0,9.899e-05,2]
[348720645,1736749840622,-109694.29052252,9.9e-05,2]
[348720649,1736749840653,-304.07322949,9.9e-05,2]
[348720652,1736749840670,-36499.76216919,9.9e-05,2]
[348720653,1736749840680,-944.65919354,9.9e-05,2]
[348720686,1736749842673,-500.0,9.899e-05,2]
[348720687,1736749842682,-500.0,9.899e-05,2]
[348720688,1736749842692,-160.60321796,9.899e-05,2]
[348720689,1736749842701,-93927.79517449,9.9e-05,2]
[348720690,1736749842710,-200.0,9.9e-05,3]
[348720691,1736749842719,-159.55000779,9.9e-05,2]
[348720692,1736749842728,-2277.8002481,9.972e-05,2]
[348720693,1736749842737,-500.0,9.973e-05,2]
[348720694,1736749842746,-261.91024239,9.973e-05,2]
[348720695,1736749842755,-565.20126687,9.973e-05,2]
[348720696,1736749842764,-500.0,9.973e-05,2]
[348720697,1736749842773,-2277.8002481,9.974e-05,2]
[348720698,1736749842783,-2277.8002481,9.979e-05,2]
[348720699,1736749842793,-611.3913821,9.98e-05,2]
[348720700,1736749842804,-2277.8002481,9.985e-05,2]
[348720701,1736749842814,-2277.8002481,9.993e-05,2]
[348720702,1736749842824,-500.0,9.998e-05,2]
[348720703,1736749842835,-771.62,9.998e-05,2]
[348720704,1736749842845,-500.0,9.998e-05,2]
[348720705,1736749842854,-551.6,9.998e-05,2]
[348720716,1736749843086,-500.0,9.998e-05,2]
[348720717,1736749843096,-500.0,9.998e-05,2]
[348720718,1736749843106,-500.0,9.998e-05,2]
[348720719,1736749843116,-828.26,9.998e-05,2]
[348720720,1736749843126,-563.02,9.998e-05,2]
[348720721,1736749843137,-1047.56,9.998e-05,2]
[348720722,1736749843146,-533.24,9.998e-05,2]
[348720723,1736749843156,-651.69,9.998e-05,2]
[348720724,1736749843165,-500.0,9.998e-05,2]
[348720725,1736749843175,-584.36,9.998e-05,2]
[348720726,1736749843184,-1109.6,9.998e-05,2]
[348720727,1736749843193,-500.0,9.998e-05,2]
[348720728,1736749843203,-527.8,9.998e-05,2]
[348720729,1736749843212,-500.0,9.998e-05,2]
[348720730,1736749843222,-2277.8002481,9.999e-05,2]
[348720731,1736749843232,-179.42039118,9.999e-05,2]
[348720732,1736749843241,-867.0423,0.0001,2]
[348720733,1736749843251,-500.0,0.0001,2]
[348720734,1736749843260,-156.07,0.0001,2]
[348720735,1736749843270,-473496.97564992,0.0001,2]
[348720736,1736749843289,-317.21311,0.0001,2]
[348720746,1736749845621,-1636.2946,9.033e-05,2]
[348720748,1736749845631,-547.89985272,9.899e-05,2]
[348720750,1736749845641,-176.15955361,9.899e-05,2]
[348720751,1736749845651,-500.0,9.899e-05,2]
[348720752,1736749845661,-5715.17818527,0.0001,2]
[348720753,1736749845674,-60250.10596605,0.0001,2]
[348720754,1736749845704,-696.995721,0.0001,2]
[348720755,1736749845715,-652.35579003,0.0001,2]
[348720756,1736749845836,-500.0,9.899e-05,2]
[348720757,1736749845847,-155500.000006,0.0001,2]
[348720758,1736749845858,-3711.99754648,0.0001,2]
[348720759,1736749845870,-3404.9,0.0001,2]
[348720760,1736749845926,-3002.3999995,0.0001,2]
[348720761,1736750012573,950.65,8.627e-05,2]
[348720762,1736750065419,250.0,8.561e-05,2]
[348720763,1736750210347,839.04,8.219e-05,2]
[348720764,1736750446904,200.0,8.527e-05,2]
[348720765,1736750598712,155.79,6.792e-05,2]
[348720766,1736750651397,162.61,8.547e-05,2]
[348720767,1736750655886,17441.91,8.547e-05,2]